[Event "Nordic Youth-ch A 2019"]
[Site "Borgarnes"]
[Date "2019.02.17"]
[Round "5.9"]
[White "Aalto, Patrik"]
[Black "Wartiovaara, Oliver"]
[Result "1/2-1/2"]
[ECO "B22"]
[WhiteElo "1985"]
[BlackElo "2021"]
[Annotator "NA"]
[PlyCount "100"]
[EventDate "2019.02.03"]
[EventType "swiss"]
[EventCountry "ISL"]
[SourceTitle "playchess.com"]
[Source "ChessBase"]
[SourceQuality "1"]
[TimeControl "5400+30"]

1. e4 {[%emt 0:00:00]} c5 {[%emt 0:00:00]} 2. c3 {[%emt 0:00:00]} Nf6 {[%emt 0:00:04]} 3. e5 {[%emt 0:00:00]} Nd5 {[%emt 0:00:03]} 4. d4 {[%emt 0:00:00]} cxd4 {[%emt 0:00:28]} 5. Nf3 {[%emt 0:00:00]} Nc6 {[%emt 0:00:27]} 6. cxd4 {[%emt 0:00:16]} d6 {[%emt 0:02:33]} 7. Bc4 {[%emt 0:00:44]} dxe5 {[%emt 0:00:22]} 8. dxe5 {[%emt 0:12:20]} Ndb4 {[%emt 0:00:06]} 9. Qb3 {[%emt 0:24:14]} e6 {[%emt 0:00:19]} 10. O-O {[%emt 0:01:50]} Bd7 {[%emt 0:06:06]} 11. Qd1 {[%emt 0:10:49]} Qc7 {[%emt 0:08:45]} 12. a3 {[%emt 0:05:57]} Na5 {[%emt 0:00:29]} 13. Bd3 {[%emt 0:04:58]} Nxd3 {[%emt 0:01:36]} 14. Qxd3 {[%emt 0:00:02]} Rc8 {[%emt 0:16:55]} 15. Nbd2 {[%emt 0:15:53]} a6 {[%emt 0:02:10]} 16. Rd1 {[%emt 0:01:07]} Bb5 {[%emt 0:02:38]} 17. Qe4 {[%emt 0:00:50]} Be7 {[%emt 0:00:52]} 18. b4 {[%emt 0:00:59]} Ba4 {[%emt 0:06:04]} 19. Re1 {[%emt 0:00:13]} Nb3 {[%emt 0:00:09]} 20. Nxb3 {[%emt 0:05:37]} Bxb3 21. Bb2 O-O {[%emt 0:01:48]} 22. Rac1 {[%emt 0:00:48]} Qd7 {[%emt 0:02:12]} 23. Nd4 {[%emt 0:00:43]} Bd5 {[%emt 0:05:42]} 24. Qe3 {[%emt 0:03:22]} h6 {[%emt 0:03:23]} 25. Rxc8 {[%emt 0:00:30]} Rxc8 {[%emt 0:00:30]} 26. Rc1 {[%emt 0:00:12]} Bg5 {[%emt 0:00:49]} 27. Rxc8+ {[%emt 0:01:25]} Qxc8 {[%emt 0:00:08]} 28. f4 {[%emt 0:01:50]} Bd8 {[%emt 0:00:38]} 29. Qc3 {[%emt 0:03:06]} Qd7 {[%emt 0:01:05]} 30. Kf2 {[%emt 0:00:57]} Bb6 {[%emt 0:00:44]} 31. Kf1 {[%emt 0:01:57]} Bxd4 {[%emt 0:04:22]} 32. Qxd4 {[%emt 0:00:07]} Qc6 {[%emt 0:01:16]} 33. Qd2 {[%emt 0:01:07]} Qc4+ {[%emt 0:00:31]} 34. Kg1 {[%emt 0:00:52]} Qe4 {[%emt 0:00:41]} 35. Kf1 {[%emt 0:01:44]} h5 {[%emt 0:02:27]} 36. h3 {[%emt 0:01:44]} Qg6 {[%emt 0:02:50]} 37. Kg1 {[%emt 0:00:37]} Qg3 {[%emt 0:00:42]} 38. Bc1 {[%emt 0:00:46]} Be4 {[%emt 0:00:30]} 39. Qe2 {[%emt 0:00:46]} Bd5 {[%emt 0:01:26]} 40. Qd2 {[%emt 0:00:33]} Qb3 {[%emt 0:01:09]} 41. Kh2 {[%emt 0:00:38]} Qc4 {[%emt 0:00:21]} 42. Kg1 {[%emt 0:00:15]} Bc6 {[%emt 0:00:40]} 43. Qd8+ {[%emt 0:00:28]} Kh7 {[%emt 0:00:07]} 44. Qd1 {[%emt 0:00:48]} Kg6 {[%emt 0:00:20]} 45. Qd2 {[%emt 0:00:34]} Kh7 {[%emt 0:03:20]} 46. Qd1 {[%emt 0:00:07]} Qe4 {[%emt 0:02:42]} 47. Qd2 {[%emt 0:00:40]} Bb5 {[%emt 0:00:25]} 48. Qe3 {[%emt 0:00:24]} Qc2 {[%emt 0:00:17]} 49. Bd2 {[%emt 0:00:35]} Qc4 {[%emt 0:01:11]} 50. Qf3 {[%emt 0:00:28]} Qe2 {[%emt 0:02:27]} 1/2-1/2

[Event "Nordic Youth-ch A 2019"]
[Site "Borgarnes"]
[Date "2019.02.17"]
[Round "5.10"]
[White "Fuglestein, Sander"]
[Black "Davidsson, Oskar Vikingur"]
[Result "1/2-1/2"]
[ECO "A40"]
[WhiteElo "2024"]
[BlackElo "1941"]
[Annotator "NA"]
[PlyCount "43"]
[EventDate "2019.02.03"]
[EventType "swiss"]
[EventCountry "ISL"]
[SourceTitle "playchess.com"]
[Source "ChessBase"]
[SourceQuality "1"]
[TimeControl "5400+30"]

1. d4 {[%emt 0:00:00]} Nf6 {[%emt 0:00:00]} 2. c4 {[%emt 0:00:00]} e6 {[%emt 0:00:00]} 3. g3 {[%emt 0:00:00]} d5 {[%emt 0:00:48]} 4. Nf3 {[%emt 0:00:00]} b6 {[%emt 0:00:07]} 5. Bg2 {[%emt 0:00:03]} Bb7 {[%emt 0:00:07]} 6. O-O {[%emt 0:00:18]} Be7 {[%emt 0:00:10]} 7. Ne5 {[%emt 0:01:43]} O-O {[%emt 0:00:46]} 8. Nc3 {[%emt 0:02:11]} c6 {[%emt 0:14:30]} 9. Bf4 {[%emt 0:06:06]} dxc4 {[%emt 0:05:20]} 10. Nxc4 {[%emt 0:02:45]} Nd5 {[%emt 0:00:24]} 11. Ne5 {[%emt 0:14:06]} Nxf4 {[%emt 0:02:58]} 12. gxf4 {[%emt 0:00:19]} Qc8 {[%emt 0:01:48]} 13. Qa4 {[%emt 0:13:37]} c5 {[%emt 0:07:14]} 14. Bxb7 {[%emt 0:00:35]} Qxb7 {[%emt 0:00:05]} 15. dxc5 Bxc5 {[%emt 0:02:30]} 16. Rfd1 {[%emt 0:02:04]} f6 {[%emt 0:05:03]} 17. Nd7 {[%emt 0:02:35]} Nxd7 {[%emt 0:01:38]} 18. Rxd7 {[%emt 0:07:20]} Qc8 {[%emt 0:04:16]} 19. Rad1 {[%emt 0:11:31]} e5 {[%emt 0:01:41]} 20. f5 {[%emt 0:13:18]} Qe8 {[%emt 0:01:44]} 21. Qg4 {[%emt 0:00:23]} Rf7 22. Qc4 1/2-1/2

[Event "Nordic Youth-ch A 2019"]
[Site "Borgarnes"]
[Date "2019.02.17"]
[Round "5.11"]
[White "Vitenberg, Noam Aviv"]
[Black "Luu, Robert"]
[Result "1-0"]
[ECO "A06"]
[WhiteElo "2180"]
[BlackElo "1687"]
[Annotator "NA"]
[PlyCount "71"]
[EventDate "2019.02.03"]
[EventType "swiss"]
[EventCountry "ISL"]
[SourceTitle "playchess.com"]
[Source "ChessBase"]
[SourceQuality "1"]
[TimeControl "5400+30"]

1. Nf3 {[%emt 0:00:00]} d5 {[%emt 0:00:00]} 2. e3 {[%emt 0:00:00]} Nf6 {[%emt 0:00:54]} 3. c4 {[%emt 0:00:00]} e6 {[%emt 0:00:12]} 4. Nc3 {[%emt 0:00:10]} Be7 {[%emt 0:00:40]} 5. d4 {[%emt 0:00:34]} a6 {[%emt 0:01:48]} 6. cxd5 {[%emt 0:01:19]} exd5 {[%emt 0:00:10]} 7. Bd3 {[%emt 0:00:17]} c6 {[%emt 0:01:04]} 8. Qc2 {[%emt 0:00:53]} O-O {[%emt 0:01:10]} 9. O-O {[%emt 0:00:16]} Nbd7 {[%emt 0:02:28]} 10. Rb1 {[%emt 0:04:28]} c5 {[%emt 0:06:14]} 11. b3 {[%emt 0:01:46]} b6 {[%emt 0:04:46]} 12. Bb2 {[%emt 0:06:50]} Bb7 {[%emt 0:02:17]} 13. Rfd1 {[%emt 0:00:55]} Qc7 {[%emt 0:07:19]} 14. Rbc1 {[%emt 0:04:14]} Rac8 {[%emt 0:02:43]} 15. Qe2 {[%emt 0:09:07]} c4 {[%emt 0:13:59]} 16. bxc4 {[%emt 0:04:16]} dxc4 {[%emt 0:00:22]} 17. Bb1 {[%emt 0:05:15]} b5 {[%emt 0:13:16]} 18. a3 {[%emt 0:12:32]} Qa5 {[%emt 0:07:40]} 19. Bc2 {[%emt 0:03:49]} Rfd8 {[%emt 0:04:59]} 20. e4 {[%emt 0:10:07]} Nf8 {[%emt 0:05:23]} 21. d5 {[%emt 0:00:47]} Ng6 22. Nd4 Bc5 {[%emt 0:08:25]} 23. Nf5 {[%emt 0:04:35]} Qc7 {[%emt 0:01:06]} 24. g3 {[%emt 0:12:26]} Ne5 {[%emt 0:02:15]} 25. Nb1 {[%emt 0:01:57]} Ne8 {[%emt 0:03:16]} 26. d6 {[%emt 0:04:59]} Bxd6 {[%emt 0:00:55]} 27. Rxd6 {[%emt 0:00:18]} Nxd6 {[%emt 0:01:44]} 28. Bxe5 {[%emt 0:00:25]} Qc5 {[%emt 0:01:23]} 29. Bxd6 {[%emt 0:03:04]} Rxd6 {[%emt 0:00:20]} 30. Nxd6 {[%emt 0:00:13]} Qxd6 {[%emt 0:00:03]} 31. Qd2 {[%emt 0:01:21]} Qe7 {[%emt 0:01:20]} 32. Rd1 {[%emt 0:01:52]} Bc6 {[%emt 0:00:34]} 33. Qd4 {[%emt 0:00:57]} a5 {[%emt 0:01:33]} 34. e5 {[%emt 0:00:34]} g6 {[%emt 0:00:47]} 35. f4 {[%emt 0:02:48]} Qb7 {[%emt 0:00:25]} 36. Nd2 {[%emt 0:00:28]} 1-0

[Event "Nordic Youth-ch A 2019"]
[Site "Borgarnes"]
[Date "2019.02.17"]
[Round "5.12"]
[White "Liu, Casper"]
[Black "Nielsen, Jon I Horni"]
[Result "1-0"]
[ECO "A45"]
[WhiteElo "2126"]
[BlackElo "1756"]
[Annotator "NA"]
[PlyCount "57"]
[EventDate "2019.02.03"]
[EventType "swiss"]
[EventCountry "ISL"]
[SourceTitle "playchess.com"]
[Source "ChessBase"]
[SourceQuality "1"]
[TimeControl "5400+30"]

1. d4 {[%emt 0:00:00]} Nf6 {[%emt 0:00:00]} 2. Bf4 {[%emt 0:00:00]} c5 3. e3 {[%emt 0:00:00]} Qb6 {[%emt 0:00:59]} 4. Nc3 {[%emt 0:00:00]} d6 {[%emt 0:01:46]} 5. Nf3 {[%emt 0:00:57]} g6 {[%emt 0:02:49]} 6. dxc5 {[%emt 0:05:42]} Qxc5 {[%emt 0:01:15]} 7. Qd4 {[%emt 0:06:58]} Qxd4 {[%emt 0:03:07]} 8. exd4 {[%emt 0:00:05]} Bg7 {[%emt 0:00:54]} 9. O-O-O {[%emt 0:00:37]} O-O {[%emt 0:02:30]} 10. Re1 {[%emt 0:00:51]} Nc6 {[%emt 0:09:27]} 11. Bb5 {[%emt 0:03:07]} Nh5 {[%emt 0:05:27]} 12. Bg5 {[%emt 0:00:32]} f6 {[%emt 0:05:18]} 13. Bd2 {[%emt 0:01:36]} e5 {[%emt 0:04:48]} 14. Nd5 {[%emt 0:01:29]} Bd7 {[%emt 0:02:59]} 15. h3 {[%emt 0:11:45]} Rae8 {[%emt 0:10:01]} 16. g4 {[%emt 0:00:47]} Nf4 {[%emt 0:02:33]} 17. Nxf4 {[%emt 0:01:10]} exf4 {[%emt 0:01:32]} 18. Bc4+ {[%emt 0:00:17]} Kh8 {[%emt 0:00:50]} 19. Bxf4 {[%emt 0:00:23]} Na5 {[%emt 0:01:37]} 20. Bd5 {[%emt 0:01:19]} Rxe1+ {[%emt 0:00:08]} 21. Rxe1 {[%emt 0:02:14]} Rd8 {[%emt 0:02:34]} 22. b4 {[%emt 0:00:10]} Nc6 {[%emt 0:01:26]} 23. Bxd6 {[%emt 0:00:27]} Be8 {[%emt 0:00:48]} 24. b5 {[%emt 0:00:14]} Nb8 {[%emt 0:01:30]} 25. Bc7 {[%emt 0:00:11]} Rc8 {[%emt 0:00:25]} 26. Bxb7 {[%emt 0:00:06]} Rxc7 {[%emt 0:00:03]} 27. Rxe8+ {[%emt 0:00:05]} Bf8 {[%emt 0:00:10]} 28. Rxf8+ {[%emt 0:00:03]} Kg7 29. Rxb8 1-0

[Event "Nordic Youth-ch A 2019"]
[Site "Borgarnes"]
[Date "2019.02.17"]
[Round "5.13"]
[White "Soderstrom, Adrian"]
[Black "Sinitsyn, Anton"]
[Result "1-0"]
[ECO "D10"]
[WhiteElo "2138"]
[BlackElo "1621"]
[Annotator "NA"]
[PlyCount "73"]
[EventDate "2019.02.03"]
[EventType "swiss"]
[EventCountry "ISL"]
[SourceTitle "playchess.com"]
[Source "ChessBase"]
[SourceQuality "1"]
[TimeControl "5400+30"]

1. d4 {[%emt 0:00:00]} d5 {[%emt 0:00:05]} 2. c4 {[%emt 0:00:18]} c6 {[%emt 0:00:05]} 3. cxd5 {[%emt 0:00:25]} cxd5 4. Nc3 {[%emt 0:00:04]} Nf6 {[%emt 0:02:23]} 5. f3 {[%emt 0:00:08]} Nc6 {[%emt 0:01:34]} 6. e4 {[%emt 0:01:23]} dxe4 {[%emt 0:16:04]} 7. d5 {[%emt 0:00:16]} Ne5 {[%emt 0:00:22]} 8. fxe4 {[%emt 0:00:05]} e6 {[%emt 0:02:24]} 9. Nf3 {[%emt 0:00:26]} Nxf3+ {[%emt 0:04:22]} 10. Qxf3 {[%emt 0:00:58]} exd5 {[%emt 0:01:10]} 11. exd5 {[%emt 0:00:56]} Bg4 {[%emt 0:03:37]} 12. Bb5+ {[%emt 0:01:02]} Bd7 {[%emt 0:00:42]} 13. Bxd7+ {[%emt 0:05:44]} Qxd7 {[%emt 0:00:29]} 14. Bg5 {[%emt 0:07:03]} Be7 {[%emt 0:03:09]} 15. O-O {[%emt 0:16:00]} O-O 16. Rad1 h6 {[%emt 0:07:07]} 17. Bh4 {[%emt 0:03:21]} Bc5+ {[%emt 0:01:27]} 18. Kh1 {[%emt 0:02:36]} Ng4 {[%emt 0:10:31]} 19. Rde1 {[%emt 0:24:05]} Bd6 {[%emt 0:01:36]} 20. Bg3 {[%emt 0:00:07]} Bxg3 {[%emt 0:00:30]} 21. Qxg3 {[%emt 0:10:15]} Rae8 {[%emt 0:04:35]} 22. h3 {[%emt 0:01:53]} Rxe1 {[%emt 0:00:50]} 23. Rxe1 {[%emt 0:03:28]} Nf6 {[%emt 0:02:06]} 24. Rf1 {[%emt 0:04:26]} Kh8 25. Qf3 b5 {[%emt 0:05:14]} 26. a3 {[%emt 0:02:01]} a5 {[%emt 0:01:31]} 27. Qf5 {[%emt 0:02:03]} Qxf5 {[%emt 0:01:27]} 28. Rxf5 {[%emt 0:00:01]} b4 {[%emt 0:00:39]} 29. axb4 {[%emt 0:00:19]} axb4 {[%emt 0:00:05]} 30. Nb5 {[%emt 0:00:41]} Rd8 {[%emt 0:02:19]} 31. d6 {[%emt 0:00:40]} Ne4 {[%emt 0:01:23]} 32. Rd5 {[%emt 0:00:51]} f5 {[%emt 0:02:48]} 33. Kg1 {[%emt 0:03:18]} g6 {[%emt 0:02:28]} 34. g4 {[%emt 0:03:08]} Kg7 {[%emt 0:02:38]} 35. gxf5 {[%emt 0:00:16]} gxf5 {[%emt 0:00:14]} 36. Nd4 {[%emt 0:00:50]} f4 {[%emt 0:03:53]} 37. Ne6+ {[%emt 0:00:27]} 1-0

[Event "Nordic Youth-ch A 2019"]
[Site "Borgarnes"]
[Date "2019.02.17"]
[Round "5.14"]
[White "Apol, Luitjen Akselsson"]
[Black "Moller, Albert Mechlenburg"]
[Result "1-0"]
[ECO "B76"]
[WhiteElo "1854"]
[BlackElo "1845"]
[Annotator "NA"]
[PlyCount "59"]
[EventDate "2019.02.03"]
[EventType "swiss"]
[EventCountry "ISL"]
[SourceTitle "playchess.com"]
[Source "ChessBase"]
[SourceQuality "1"]
[TimeControl "5400+30"]

1. e4 c5 2. Nf3 d6 3. d4 {[%emt 0:00:18]} cxd4 {[%emt 0:00:45]} 4. Nxd4 {[%emt 0:00:30]} Nf6 {[%emt 0:00:58]} 5. Nc3 {[%emt 0:00:00]} g6 {[%emt 0:00:30]} 6. Be3 {[%emt 0:00:19]} Bg7 {[%emt 0:00:30]} 7. f3 {[%emt 0:00:30]} Nc6 {[%emt 0:00:30]} 8. Qd2 {[%emt 0:00:30]} O-O {[%emt 0:00:30]} 9. O-O-O {[%emt 0:00:30]} d5 {[%emt 0:00:30]} 10. exd5 {[%emt 0:00:30]} Nxd5 {[%emt 0:00:30]} 11. Nxc6 {[%emt 0:00:30]} bxc6 {[%emt 0:00:30]} 12. Bd4 {[%emt 0:00:30]} Nxc3 {[%emt 0:00:30]} 13. Qxc3 {[%emt 0:00:30]} Bh6+ {[%emt 0:00:30]} 14. Be3 {[%emt 0:00:30]} Bxe3+ {[%emt 0:00:30]} 15. Qxe3 {[%emt 0:00:30]} Qc7 {[%emt 0:00:30]} 16. Bc4 {[%emt 0:00:30]} a5 {[%emt 0:00:30]} 17. h4 {[%emt 0:00:30]} Ba6 {[%emt 0:00:30]} 18. Bxa6 {[%emt 0:00:30]} Rxa6 {[%emt 0:00:30]} 19. h5 {[%emt 0:16:56]} a4 {[%emt 0:24:56]} 20. Qd4 {[%emt 0:00:30]} c5 {[%emt 0:20:52]} 21. Qc4 {[%emt 0:12:21]} Rfa8 {[%emt 0:02:00]} 22. hxg6 {[%emt 0:01:45]} Rxg6 {[%emt 0:00:15]} 23. Rxh7 {[%emt 0:01:58]} Rg7 {[%emt 0:10:30]} 24. Rxg7+ {[%emt 0:00:46]} Kxg7 {[%emt 0:00:05]} 25. Qg4+ {[%emt 0:00:06]} Kf8 {[%emt 0:00:18]} 26. Qe4 {[%emt 0:02:57]} Ra7 {[%emt 0:04:30]} 27. Qh4 {[%emt 0:05:16]} e6 {[%emt 0:02:59]} 28. Rd8+ {[%emt 0:01:07]} Kg7 {[%emt 0:00:36]} 29. Qg5+ {[%emt 0:00:06]} Kh7 {[%emt 0:00:29]} 30. Rg8 {[%emt 0:00:30]} 1-0

[Event "Nordic Youth-ch A 2019"]
[Site "Borgarnes"]
[Date "2019.02.17"]
[Round "5.15"]
[White "Dale, Gunnar Brandshaug"]
[Black "Falkevall, Axel"]
[Result "1-0"]
[ECO "D45"]
[WhiteElo "1889"]
[BlackElo "2070"]
[Annotator "NA"]
[PlyCount "37"]
[EventDate "2019.02.03"]
[EventType "swiss"]
[EventCountry "ISL"]
[SourceTitle "playchess.com"]
[Source "ChessBase"]
[SourceQuality "1"]
[TimeControl "5400+30"]

1. Nf3 {[%emt 0:00:00]} Nf6 {[%emt 0:00:00]} 2. c4 {[%emt 0:00:00]} e6 {[%emt 0:00:00]} 3. Nc3 {[%emt 0:00:11]} d5 {[%emt 0:00:02]} 4. d4 {[%emt 0:00:25]} c6 {[%emt 0:00:28]} 5. e3 {[%emt 0:00:23]} Nbd7 {[%emt 0:00:08]} 6. Qc2 {[%emt 0:00:19]} Bd6 {[%emt 0:00:09]} 7. g4 {[%emt 0:00:12]} h6 {[%emt 0:00:25]} 8. Rg1 {[%emt 0:00:32]} e5 {[%emt 0:22:41]} 9. dxe5 {[%emt 0:03:59]} Nxe5 {[%emt 0:00:59]} 10. Nxe5 {[%emt 0:00:50]} Bxe5 {[%emt 0:00:18]} 11. cxd5 {[%emt 0:02:12]} cxd5 {[%emt 0:05:24]} 12. g5 {[%emt 0:05:57]} hxg5 {[%emt 0:06:58]} 13. Rxg5 {[%emt 0:00:31]} Bxc3+ {[%emt 0:02:45]} 14. Qxc3 {[%emt 0:02:58]} O-O {[%emt 0:05:13]} 15. b3 {[%emt 0:09:24]} Re8 {[%emt 0:05:15]} 16. Bb2 {[%emt 0:02:37]} Re6 {[%emt 0:01:10]} 17. Bd3 {[%emt 0:04:00]} Qd6 {[%emt 0:03:33]} 18. Bf5 {[%emt 0:09:24]} Re8 {[%emt 0:01:57]} 19. Bxc8 {[%emt 0:02:11]} 1-0

[Event "Nordic Youth-ch A 2019"]
[Site "Borgarnes"]
[Date "2019.02.17"]
[Round "5.16"]
[White "Shehzad, Shazil"]
[Black "Gudmundsson, Gunnar Erik"]
[Result "1-0"]
[ECO "B42"]
[WhiteElo "1959"]
[BlackElo "1693"]
[Annotator "NA"]
[PlyCount "120"]
[EventDate "2019.02.03"]
[EventType "swiss"]
[EventCountry "ISL"]
[SourceTitle "playchess.com"]
[Source "ChessBase"]
[SourceQuality "1"]
[TimeControl "5400+30"]

1. e4 {[%emt 0:00:00]} c5 {[%emt 0:00:00]} 2. Nf3 {[%emt 0:00:00]} e6 {[%emt 0:00:00]} 3. d4 {[%emt 0:00:00]} cxd4 {[%emt 0:00:00]} 4. Nxd4 {[%emt 0:00:00]} a6 {[%emt 0:00:06]} 5. Bd3 {[%emt 0:00:00]} Qc7 {[%emt 0:00:11]} 6. Qe2 {[%emt 0:00:21]} Nc6 {[%emt 0:02:51]} 7. Nxc6 {[%emt 0:00:18]} bxc6 {[%emt 0:00:07]} 8. c4 {[%emt 0:00:37]} d6 {[%emt 0:12:12]} 9. Nc3 {[%emt 0:02:46]} Nf6 {[%emt 0:00:36]} 10. O-O {[%emt 0:01:11]} Be7 {[%emt 0:00:41]} 11. f4 {[%emt 0:03:50]} Bb7 {[%emt 0:04:30]} 12. e5 {[%emt 0:02:33]} Nd7 {[%emt 0:02:40]} 13. exd6 {[%emt 0:02:10]} Bxd6 {[%emt 0:01:26]} 14. Ne4 {[%emt 0:00:51]} Be7 {[%emt 0:02:37]} 15. Be3 {[%emt 0:03:02]} Nf6 {[%emt 0:08:20]} 16. Bd4 {[%emt 0:05:00]} Rd8 {[%emt 0:11:19]} 17. Bc3 {[%emt 0:04:31]} c5 {[%emt 0:02:11]} 18. Nxf6+ {[%emt 0:01:46]} Bxf6 {[%emt 0:03:55]} 19. Bxf6 {[%emt 0:02:21]} gxf6 {[%emt 0:00:34]} 20. Be4 {[%emt 0:00:27]} Rd4 21. Bxb7 {[%emt 0:02:08]} Qxb7 {[%emt 0:05:30]} 22. Rad1 Qe4 23. Qg4 {[%emt 0:27:02]} Ke7 {[%emt 0:25:38]} 24. Rde1 {[%emt 0:10:41]} Qg6 {[%emt 0:06:09]} 25. Qf3 {[%emt 0:02:36]} Rb8 {[%emt 0:03:48]} 26. b3 {[%emt 0:00:43]} Rd2 {[%emt 0:02:38]} 27. Qc6 {[%emt 0:02:53]} Rbd8 {[%emt 0:04:57]} 28. Qxc5+ {[%emt 0:02:27]} Ke8 {[%emt 0:00:19]} 29. Qc6+ {[%emt 0:01:39]} Ke7 {[%emt 0:00:36]} 30. f5 {[%emt 0:04:31]} Qg4 {[%emt 0:00:31]} 31. fxe6 {[%emt 0:00:41]} fxe6 {[%emt 0:00:04]} 32. Rf2 {[%emt 0:03:14]} Rxf2 {[%emt 0:00:58]} 33. Qc5+ {[%emt 0:01:22]} Kf7 {[%emt 0:00:29]} 34. Qxf2 {[%emt 0:00:17]} Rd7 {[%emt 0:00:16]} 35. h3 {[%emt 0:01:15]} Qg5 {[%emt 0:00:18]} 36. Qe3 {[%emt 0:03:00]} Qf5 {[%emt 0:00:24]} 37. g4 {[%emt 0:01:09]} Qe5 {[%emt 0:00:35]} 38. Qxe5 {[%emt 0:00:09]} fxe5 {[%emt 0:00:01]} 39. Rxe5 {[%emt 0:00:10]} Kf6 {[%emt 0:00:44]} 40. Ra5 {[%emt 0:01:03]} Rd6 {[%emt 0:00:05]} 41. Kf2 {[%emt 0:00:24]} h6 {[%emt 0:00:43]} 42. Ke3 {[%emt 0:01:04]} Kg6 {[%emt 0:01:02]} 43. h4 {[%emt 0:00:29]} Kf6 {[%emt 0:00:17]} 44. Ke4 {[%emt 0:00:18]} Rc6 {[%emt 0:01:03]} 45. Kd4 {[%emt 0:00:33]} Kg6 {[%emt 0:00:36]} 46. Ke5 {[%emt 0:00:23]} Kf7 {[%emt 0:00:13]} 47. c5 {[%emt 0:00:13]} Ke7 {[%emt 0:00:17]} 48. b4 {[%emt 0:00:16]} Kf7 {[%emt 0:00:39]} 49. Ra3 {[%emt 0:00:06]} Kg7 {[%emt 0:00:28]} 50. Rf3 {[%emt 0:00:08]} a5 {[%emt 0:00:33]} 51. a3 {[%emt 0:00:05]} axb4 {[%emt 0:00:39]} 52. axb4 {[%emt 0:00:04]} h5 {[%emt 0:00:32]} 53. gxh5 {[%emt 0:00:14]} Kh6 {[%emt 0:00:11]} 54. Rf6+ {[%emt 0:00:04]} Kxh5 {[%emt 0:00:09]} 55. Rxe6 {[%emt 0:00:05]} Rc8 {[%emt 0:00:11]} 56. Kd5 {[%emt 0:00:12]} Kxh4 {[%emt 0:00:22]} 57. b5 {[%emt 0:00:08]} Kg5 {[%emt 0:00:23]} 58. b6 {[%emt 0:00:06]} Kf5 {[%emt 0:00:29]} 59. b7 {[%emt 0:00:17]} Rd8+ {[%emt 0:00:19]} 60. Rd6 {[%emt 0:00:04]} Re8 {[%emt 0:00:20] Ke4+} 1-0

[Event "Nordic Youth-ch A 2019"]
[Site "Borgarnes"]
[Date "2019.02.17"]
[Round "5.17"]
[White "Medhus, Vitus Bondo"]
[Black "Kvaloy, Aksel Bu"]
[Result "1/2-1/2"]
[ECO "B06"]
[WhiteElo "1788"]
[BlackElo "2066"]
[Annotator "NA"]
[PlyCount "120"]
[EventDate "2019.02.03"]
[EventType "swiss"]
[EventCountry "ISL"]
[SourceTitle "playchess.com"]
[Source "ChessBase"]
[SourceQuality "1"]
[TimeControl "5400+30"]

1. e4 {[%emt 0:00:00]} g6 {[%emt 0:00:00]} 2. Nc3 {[%emt 0:00:00]} Bg7 {[%emt 0:00:00]} 3. f4 {[%emt 0:00:00]} d6 {[%emt 0:00:12]} 4. Nf3 {[%emt 0:00:12]} c5 {[%emt 0:01:10]} 5. Bc4 {[%emt 0:01:16]} Nc6 {[%emt 0:00:42]} 6. O-O {[%emt 0:01:01]} e6 {[%emt 0:00:37]} 7. Qe1 {[%emt 0:02:49]} Nge7 {[%emt 0:00:48]} 8. d3 {[%emt 0:01:06]} O-O {[%emt 0:00:56]} 9. Bb3 {[%emt 0:02:09]} Nd4 {[%emt 0:02:58]} 10. Be3 {[%emt 0:02:40]} d5 {[%emt 0:09:32]} 11. Bxd4 {[%emt 0:01:56]} cxd4 {[%emt 0:01:03]} 12. Ne2 {[%emt 0:01:10]} Qb6 {[%emt 0:06:20]} 13. Qh4 {[%emt 0:02:49]} dxe4 {[%emt 0:04:22]} 14. Ng5 {[%emt 0:01:00]} h6 {[%emt 0:02:24]} 15. Nxe4 {[%emt 0:01:31]} Nf5 {[%emt 0:00:47]} 16. Qh3 {[%emt 0:00:32]} Ne3 {[%emt 0:09:53]} 17. Rfe1 {[%emt 0:05:38]} f5 {[%emt 0:09:43]} 18. Nd2 {[%emt 0:02:48]} Kh7 {[%emt 0:05:55]} 19. Nf3 {[%emt 0:04:33]} Bf6 {[%emt 0:06:59]} 20. Kh1 {[%emt 0:03:47]} Qd6 {[%emt 0:06:38]} 21. Kg1 {[%emt 0:13:26]} Nd5 {[%emt 0:04:11]} 22. Bxd5 {[%emt 0:01:05]} Qxd5 {[%emt 0:00:11]} 23. Ng5+ {[%emt 0:03:11]} Kg7 {[%emt 0:01:10]} 24. Nf3 {[%emt 0:00:28]} b6 {[%emt 0:00:55]} 25. Qg3 {[%emt 0:02:01]} Bb7 {[%emt 0:01:13]} 26. c4 {[%emt 0:01:46]} Qd7 {[%emt 0:05:09]} 27. Ne5 {[%emt 0:03:05]} Bxe5 {[%emt 0:00:27]} 28. fxe5 {[%emt 0:02:39]} Kh7 {[%emt 0:01:11]} 29. b4 {[%emt 0:01:23]} g5 {[%emt 0:01:37]} 30. Qf2 {[%emt 0:01:33]} Rad8 {[%emt 0:02:03]} 31. c5 {[%emt 0:02:11]} f4 {[%emt 0:01:46]} 32. Rac1 {[%emt 0:01:48]} Qd5 {[%emt 0:00:54]} 33. cxb6 {[%emt 0:03:26]} axb6 {[%emt 0:06:19]} 34. Rc7+ {[%emt 0:01:48]} Kg6 {[%emt 0:00:15]} 35. Nxd4 {[%emt 0:01:08]} Qxd4 {[%emt 0:00:38]} 36. Qxd4 {[%emt 0:00:28]} Rxd4 {[%emt 0:00:04]} 37. Rxb7 {[%emt 0:00:17]} Rxd3 {[%emt 0:02:33]} 38. Rxb6 {[%emt 0:00:09]} Kf5 {[%emt 0:00:15]} 39. g4+ {[%emt 0:00:44]} Kxg4 {[%emt 0:01:28]} 40. Rxe6 {[%emt 0:00:18]} Re3 {[%emt 0:02:56]} 41. Rf1 {[%emt 0:00:38]} Rc8 {[%emt 0:02:04]} 42. b5 {[%emt 0:01:46]} Rc2 {[%emt 0:01:48]} 43. Rb1 {[%emt 0:04:01]} Ree2 {[%emt 0:00:25]} 44. Rxh6 {[%emt 0:00:38]} Rxe5 {[%emt 0:00:49]} 45. b6 {[%emt 0:00:20]} Re8 {[%emt 0:00:25]} 46. b7 {[%emt 0:00:17]} Rb8 {[%emt 0:00:03]} 47. a4 {[%emt 0:00:40]} Ra2 {[%emt 0:00:14]} 48. Ra6 {[%emt 0:00:17]} Kf3 {[%emt 0:00:40]} 49. Ra7 {[%emt 0:01:15]} Rd2 {[%emt 0:01:02]} 50. Rb3+ {[%emt 0:01:49]} Ke2 {[%emt 0:00:29]} 51. a5 {[%emt 0:00:48]} f3 {[%emt 0:00:24]} 52. Rb1 {[%emt 0:00:32]} Rbd8 {[%emt 0:00:42]} 53. h4 {[%emt 0:02:57]} Rd1+ {[%emt 0:00:27]} 54. Rxd1 {[%emt 0:00:02]} Rxd1+ {[%emt 0:00:02]} 55. Kh2 {[%emt 0:00:27]} Rb1 {[%emt 0:00:48]} 56. Ra6 {[%emt 0:01:10]} f2 {[%emt 0:00:48]} 57. Re6+ {[%emt 0:00:23]} Kd3 {[%emt 0:00:12]} 58. Rf6 {[%emt 0:00:37]} Rxb7 {[%emt 0:00:42]} 59. Rxf2 {[%emt 0:01:24]} gxh4 {[%emt 0:00:18]} 60. Kh3 {[%emt 0:00:34]} Ra7 {[%emt 0:00:07]} 1/2-1/2